[Event "FIDE Grand Swiss 2023"]
[Site "Villa Marina, Douglas, Isle of Man, Isle Of Man"]
[Date "2023.10.26"]
[Round "2.44"]
[White "Sanal, Vahap"]
[Black "Donchenko, Alexander"]
[Result "1/2-1/2"]
[TimeControl "40/90 + 30 + 30s/move"]
[WhiteFideId "6300545"]
[BlackFideId "24603295"]
[WhiteElo "2603"]
[BlackElo "2676"]

1. e4 {[%clk 01:40:40]} {[%emt 00:00:19]} e5 {[%clk 01:40:47]} {[%emt
00:00:14]} 2. Nf3 {[%clk 01:41:02]} {[%emt 00:00:07]} Nc6 {[%clk 01:41:11]}
{[%emt 00:00:07]} 3. Bb5 {[%clk 01:41:24]} {[%emt 00:00:07]} a6 {[%clk
01:41:29]} {[%emt 00:00:13]} 4. Ba4 {[%clk 01:41:48]} {[%emt 00:00:05]} Nf6
{[%clk 01:41:52]} {[%emt 00:00:07]} 5. O-O {[%clk 01:41:55]} {[%emt 00:00:22]}
Be7 {[%clk 01:42:15]} {[%emt 00:00:08]} 6. Bxc6 {[%clk 01:41:59]} {[%emt
00:00:27]} dxc6 {[%clk 01:42:08]} {[%emt 00:00:36]} 7. Re1 {[%clk 01:42:11]}
{[%emt 00:00:18]} Nd7 {[%clk 01:34:39]} {[%emt 00:08:00]} 8. d4 {[%clk
01:41:15]} {[%emt 00:01:26]} exd4 {[%clk 01:34:00]} {[%emt 00:01:09]} 9. Qxd4
{[%clk 01:41:34]} {[%emt 00:00:10]} O-O {[%clk 01:34:07]} {[%emt 00:00:23]} 10.
Bf4 {[%clk 01:40:35]} {[%emt 00:01:29]} Re8 {[%clk 01:29:58]} {[%emt 00:04:39]}
11. Nc3 {[%clk 01:40:11]} {[%emt 00:00:54]} Nf8 {[%clk 01:11:41]} {[%emt
00:18:47]} 12. Qe3 {[%clk 01:35:40]} {[%emt 00:05:01]} Be6 {[%clk 01:06:47]}
{[%emt 00:05:25]} 13. Rad1 {[%clk 01:35:19]} {[%emt 00:00:51]} Qc8 {[%clk
01:06:53]} {[%emt 00:00:24]} 14. Nd4 {[%clk 01:29:15]} {[%emt 00:06:33]} Bg4
{[%clk 01:01:23]} {[%emt 00:06:01]} 15. Rd3 {[%clk 01:25:58]} {[%emt 00:03:46]}
Ng6 {[%clk 00:59:27]} {[%emt 00:02:26]} 16. h3 {[%clk 01:25:35]} {[%emt
00:00:54]} c5 {[%clk 00:54:47]} {[%emt 00:05:10]} 17. Nf3 {[%clk 01:24:36]}
{[%emt 00:01:28]} c4 {[%clk 00:46:22]} {[%emt 00:08:56]} 18. Rdd1 {[%clk
01:22:01]} {[%emt 00:03:04]} Bc5 {[%clk 00:44:48]} {[%emt 00:02:04]} 19. Qxc5
{[%clk 01:20:37]} {[%emt 00:01:54]} Bxf3 {[%clk 00:45:09]} {[%emt 00:00:09]} 20.
Bxc7 {[%clk 01:20:14]} {[%emt 00:00:53]} Bxd1 {[%clk 00:32:09]} {[%emt
00:13:31]} 21. Rxd1 {[%clk 01:20:06]} {[%emt 00:00:37]} b5 {[%clk 00:31:40]}
{[%emt 00:00:59]} 22. Nd5 {[%clk 01:14:01]} {[%emt 00:06:34]} Qb7 {[%clk
00:31:27]} {[%emt 00:00:44]} 23. Nb6 {[%clk 01:12:33]} {[%emt 00:01:58]} Rac8
{[%clk 00:26:21]} {[%emt 00:05:37]} 24. Nxc8 {[%clk 01:09:58]} {[%emt
00:03:05]} Rxc8 {[%clk 00:26:48]} {[%emt 00:00:03]} 25. Rd7 {[%clk 01:07:08]}
{[%emt 00:03:19]} Qxe4 {[%clk 00:26:38]} {[%emt 00:00:41]} 26. f3 {[%clk
01:00:59]} {[%emt 00:06:38]} Qe6 {[%clk 00:20:17]} {[%emt 00:06:52]} 27. Qd6
{[%clk 00:56:12]} {[%emt 00:05:16]} Nf8 {[%clk 00:19:39]} {[%emt 00:01:09]} 28.
Qxe6 {[%clk 00:46:55]} {[%emt 00:09:46]} fxe6 {[%clk 00:17:43]} {[%emt
00:02:26]} 29. Re7 {[%clk 00:47:20]} {[%emt 00:00:05]} Ng6 {[%clk 00:18:08]}
{[%emt 00:00:05]} 30. Rd7 {[%clk 00:47:46]} {[%emt 00:00:05]} Nf8 {[%clk
00:18:30]} {[%emt 00:00:08]} 1/2-1/2

[Event "FIDE Grand Swiss 2023"]
[Site "Villa Marina, Douglas, Isle of Man, Isle Of Man"]
[Date "2023.10.26"]
[Round "2.45"]
[White "Matlakov, Maxim"]
[Black "Petrosyan, Manuel"]
[Result "1/2-1/2"]
[TimeControl "40/90 + 30 + 30s/move"]
[WhiteFideId "4168003"]
[BlackFideId "13300857"]
[WhiteElo "2674"]
[BlackElo "2604"]

1. e4 {[%clk 01:40:55]} {[%emt 00:00:04]} e5 {[%clk 01:37:59]} {[%emt
00:03:01]} 2. Nf3 {[%clk 01:41:15]} {[%emt 00:00:10]} Nc6 {[%clk 01:38:22]}
{[%emt 00:00:08]} 3. Bc4 {[%clk 01:41:32]} {[%emt 00:00:14]} Bc5 {[%clk
01:38:38]} {[%emt 00:00:13]} 4. O-O {[%clk 01:41:31]} {[%emt 00:00:31]} Nf6
{[%clk 01:38:58]} {[%emt 00:00:10]} 5. d3 {[%clk 01:41:54]} {[%emt 00:00:08]}
d6 {[%clk 01:39:08]} {[%emt 00:00:19]} 6. c3 {[%clk 01:42:08]} {[%emt
00:00:16]} a5 {[%clk 01:39:17]} {[%emt 00:00:21]} 7. Re1 {[%clk 01:42:16]}
{[%emt 00:00:21]} Ba7 {[%clk 01:38:07]} {[%emt 00:01:41]} 8. Nbd2 {[%clk
01:36:43]} {[%emt 00:06:03]} O-O {[%clk 01:37:13]} {[%emt 00:01:23]} 9. h3
{[%clk 01:36:56]} {[%emt 00:00:18]} Be6 {[%clk 01:36:23]} {[%emt 00:01:20]} 10.
Bb5 {[%clk 01:36:43]} {[%emt 00:00:43]} Ne7 {[%clk 01:36:11]} {[%emt 00:00:42]}
11. d4 {[%clk 01:36:36]} {[%emt 00:00:37]} Ng6 {[%clk 01:36:08]} {[%emt
00:00:34]} 12. Ba4 {[%clk 01:36:28]} {[%emt 00:00:37]} c6 {[%clk 01:30:18]}
{[%emt 00:06:20]} 13. Bc2 {[%clk 01:33:29]} {[%emt 00:03:29]} Nh5 {[%clk
01:29:04]} {[%emt 00:01:43]} 14. Nf1 {[%clk 01:28:33]} {[%emt 00:05:26]} Nhf4
{[%clk 01:27:10]} {[%emt 00:02:24]} 15. Ng3 {[%clk 01:26:12]} {[%emt 00:02:51]}
f6 {[%clk 01:20:39]} {[%emt 00:07:02]} 16. Be3 {[%clk 01:19:53]} {[%emt
00:06:49]} Qd7 {[%clk 01:17:01]} {[%emt 00:04:08]} 17. Ne2 {[%clk 01:08:30]}
{[%emt 00:11:53]} Nxg2 {[%clk 00:38:06]} {[%emt 00:39:25]} 18. Kxg2 {[%clk
01:08:37]} {[%emt 00:00:23]} Bxh3+ {[%clk 00:37:43]} {[%emt 00:00:53]} 19. Kh1
{[%clk 00:58:55]} {[%emt 00:10:12]} f5 {[%clk 00:07:56]} {[%emt 00:30:17]} 20.
exf5 {[%clk 00:52:50]} {[%emt 00:06:34]} e4 {[%clk 00:08:22]} {[%emt 00:00:05]}
21. Bxe4 {[%clk 00:44:29]} {[%emt 00:08:51]} Bxf5 {[%clk 00:06:24]} {[%emt
00:02:27]} 22. Bxf5 {[%clk 00:39:29]} {[%emt 00:05:30]} Qxf5 {[%clk 00:06:53]}
{[%emt 00:00:02]} 23. Neg1 {[%clk 00:31:02]} {[%emt 00:08:57]} Rae8 {[%clk
00:07:15]} {[%emt 00:00:08]} 24. Bd2 {[%clk 00:19:31]} {[%emt 00:12:01]} Rxe1
{[%clk 00:04:41]} {[%emt 00:03:04]} 25. Qxe1 {[%clk 00:19:42]} {[%emt
00:00:19]} Bb8 {[%clk 00:04:16]} {[%emt 00:00:55]} 26. Qe2 {[%clk 00:09:51]}
{[%emt 00:10:20]} d5 {[%clk 00:02:38]} {[%emt 00:02:09]} 27. Ng5 {[%clk
00:08:49]} {[%emt 00:01:31]} Qxf2 {[%clk 00:01:08]} {[%emt 00:02:01]} 28. Qe6+
{[%clk 00:08:03]} {[%emt 00:01:15]} Kh8 {[%clk 00:01:28]} {[%emt 00:00:10]} 29.
Qh3 {[%clk 00:08:30]} {[%emt 00:00:04]} h6 {[%clk 00:01:27]} {[%emt 00:00:31]}
30. N5f3 {[%clk 00:06:57]} {[%emt 00:02:02]} Nf4 {[%clk 00:00:45]} {[%emt
00:01:13]} 31. Bxf4 {[%clk 00:06:57]} {[%emt 00:00:30]} Bxf4 {[%clk 00:00:37]}
{[%emt 00:00:38]} 32. Rf1 {[%clk 00:06:40]} {[%emt 00:00:47]} Qxb2 {[%clk
00:01:03]} {[%emt 00:00:05]} 33. Ne5 {[%clk 00:02:54]} {[%emt 00:04:16]} Kh7
{[%clk 00:01:06]} {[%emt 00:00:26]} 34. Qg2 {[%clk 00:01:00]} {[%emt 00:02:23]}
Qxg2+ {[%clk 00:00:50]} {[%emt 00:00:46]} 35. Kxg2 {[%clk 00:01:29]} Rf6 {[%clk
00:00:47]} {[%emt 00:00:33]} 36. Ng4 {[%clk 00:01:20]} {[%emt 00:00:39]} Rf8
{[%clk 00:01:12]} {[%emt 00:00:06]} 37. Ne5 {[%clk 00:01:28]} {[%emt 00:00:21]}
Rf6 {[%clk 00:01:38]} {[%emt 00:00:04]} 38. Nd7 {[%clk 00:00:59]} {[%emt
00:00:59]} Rg6+ {[%clk 00:01:05]} {[%emt 00:01:04]} 39. Kf3 {[%clk 00:00:56]}
{[%emt 00:00:31]} Bd6 {[%clk 00:00:56]} {[%emt 00:00:41]} 40. Ne2 {[%clk
00:01:16]} {[%emt 00:00:10]} Rg5 {[%clk 00:00:35]} {[%emt 00:00:52]} 41. Ke3
{[%clk 00:48:38]} {[%emt 00:03:06]} h5 {[%clk 00:46:24]} {[%emt 00:04:41]} 42.
Nc5 {[%clk 00:45:16]} {[%emt 00:03:53]} Bxc5 {[%clk 00:31:20]} {[%emt
00:15:34]} 43. dxc5 {[%clk 00:45:41]} {[%emt 00:00:05]} Re5+ {[%clk 00:31:38]}
{[%emt 00:00:12]} 44. Kf2 {[%clk 00:31:26]} {[%emt 00:14:44]} Rf5+ {[%clk
00:26:29]} {[%emt 00:05:39]} 45. Kg2 {[%clk 00:31:12]} {[%emt 00:00:45]} Rxf1
{[%clk 00:26:49]} {[%emt 00:00:10]} 46. Kxf1 {[%clk 00:31:38]} {[%emt
00:00:04]} Kg6 {[%clk 00:27:12]} {[%emt 00:00:07]} 47. a4 {[%clk 00:28:21]}
{[%emt 00:03:47]} Kf5 {[%clk 00:26:08]} {[%emt 00:01:34]} 48. Nd4+ {[%clk
00:27:50]} {[%emt 00:01:01]} Ke4 {[%clk 00:22:11]} {[%emt 00:04:27]} 49. Ke2
{[%clk 00:28:09]} {[%emt 00:00:12]} g5 {[%clk 00:14:03]} {[%emt 00:08:37]} 50.
Nb3 {[%clk 00:11:42]} {[%emt 00:16:57]} h4 {[%clk 00:07:38]} {[%emt 00:06:55]}
51. Nxa5 {[%clk 00:12:03]} {[%emt 00:00:09]} h3 {[%clk 00:04:58]} {[%emt
00:03:10]} 52. Kf2 {[%clk 00:12:28]} {[%emt 00:00:05]} d4 {[%clk 00:05:17]}
{[%emt 00:00:11]} 53. cxd4 {[%clk 00:12:09]} {[%emt 00:00:49]} Kxd4 {[%clk
00:05:42]} {[%emt 00:00:05]} 54. Nxb7 {[%clk 00:12:24]} {[%emt 00:00:15]} Kc4
{[%clk 00:05:56]} {[%emt 00:00:15]} 55. Kg3 {[%clk 00:12:00]} {[%emt 00:00:55]}
g4 {[%clk 00:06:18]} {[%emt 00:00:08]} 56. a5 {[%clk 00:11:40]} {[%emt
00:00:50]} 1/2-1/2

[Event "FIDE Grand Swiss 2023"]
[Site "Villa Marina, Douglas, Isle of Man, Isle Of Man"]
[Date "2023.10.26"]
[Round "2.46"]
[White "Wagner, Dennis"]
[Black "Pichot, Alan"]
[Result "0-1"]
[TimeControl "40/90 + 30 + 30s/move"]
[WhiteFideId "24650684"]
[BlackFideId "110973"]
[WhiteElo "2589"]
[BlackElo "2650"]

1. d4 {[%clk 01:40:50]} {[%emt 00:00:09]} d5 {[%clk 01:40:40]} {[%emt
00:00:20]} 2. c4 {[%clk 01:41:13]} {[%emt 00:00:07]} e6 {[%clk 01:40:56]}
{[%emt 00:00:14]} 3. Nf3 {[%clk 01:41:17]} {[%emt 00:00:26]} a6 {[%clk
01:41:11]} {[%emt 00:00:14]} 4. Bg5 {[%clk 01:34:58]} {[%emt 00:06:49]} Be7
{[%clk 01:41:20]} {[%emt 00:00:22]} 5. Bxe7 {[%clk 01:35:10]} {[%emt 00:00:18]}
Qxe7 {[%clk 01:41:40]} {[%emt 00:00:09]} 6. Nbd2 {[%clk 01:32:29]} {[%emt
00:03:12]} Nf6 {[%clk 01:41:49]} {[%emt 00:00:21]} 7. g3 {[%clk 01:26:53]}
{[%emt 00:06:06]} O-O {[%clk 01:41:26]} {[%emt 00:00:52]} 8. Bg2 {[%clk
01:27:19]} {[%emt 00:00:04]} Nbd7 {[%clk 01:40:44]} {[%emt 00:01:12]} 9. O-O
{[%clk 01:26:44]} {[%emt 00:01:05]} b6 {[%clk 01:38:37]} {[%emt 00:02:37]} 10.
Ne5 {[%clk 01:22:53]} {[%emt 00:04:22]} c5 {[%clk 01:28:15]} {[%emt 00:10:51]}
11. cxd5 {[%clk 01:19:40]} {[%emt 00:03:43]} exd5 {[%clk 01:28:16]} {[%emt
00:00:30]} 12. Ndc4 {[%clk 01:15:04]} {[%emt 00:05:06]} Qe6 {[%clk 01:13:23]}
{[%emt 00:15:23]} 13. Nd3 {[%clk 00:45:50]} {[%emt 00:29:44]} g5 {[%clk
00:45:08]} {[%emt 00:28:45]} 14. Ne3 {[%clk 00:40:01]} {[%emt 00:06:18]} Bb7
{[%clk 00:42:37]} {[%emt 00:03:03]} 15. dxc5 {[%clk 00:30:29]} {[%emt
00:10:01]} Nxc5 {[%clk 00:31:40]} {[%emt 00:11:27]} 16. Nc2 {[%clk 00:30:35]}
{[%emt 00:00:23]} Nfe4 {[%clk 00:31:32]} {[%emt 00:00:39]} 17. b4 {[%clk
00:19:49]} {[%emt 00:11:16]} Nxd3 {[%clk 00:24:13]} {[%emt 00:07:48]} 18. Qxd3
{[%clk 00:16:42]} {[%emt 00:03:38]} Rac8 {[%clk 00:24:15]} {[%emt 00:00:28]} 19.
Nd4 {[%clk 00:17:02]} {[%emt 00:00:10]} Qf6 {[%clk 00:24:20]} {[%emt 00:00:25]}
20. e3 {[%clk 00:16:23]} {[%emt 00:01:09]} Rc3 {[%clk 00:23:27]} {[%emt
00:01:23]} 21. Qe2 {[%clk 00:16:40]} {[%emt 00:00:12]} Rfc8 {[%clk 00:23:19]}
{[%emt 00:00:38]} 22. Qg4 {[%clk 00:09:21]} {[%emt 00:07:50]} R8c7 {[%clk
00:21:14]} {[%emt 00:02:35]} 23. Bxe4 {[%clk 00:09:04]} {[%emt 00:00:47]} dxe4
{[%clk 00:21:28]} {[%emt 00:00:16]} 24. h4 {[%clk 00:08:52]} {[%emt 00:00:42]}
h6 {[%clk 00:21:01]} {[%emt 00:00:56]} 25. Rad1 {[%clk 00:08:37]} {[%emt
00:00:46]} Bd5 {[%clk 00:18:20]} {[%emt 00:03:11]} 26. Rd2 {[%clk 00:05:38]}
{[%emt 00:03:28]} Rd3 {[%clk 00:16:27]} {[%emt 00:02:24]} 27. Rfd1 {[%clk
00:04:53]} {[%emt 00:01:14]} Qg6 {[%clk 00:14:38]} {[%emt 00:02:19]} 28. Rxd3
{[%clk 00:00:55]} {[%emt 00:04:29]} exd3 {[%clk 00:15:06]} {[%emt 00:00:02]} 29.
Nf5 {[%clk 00:01:18]} {[%emt 00:00:07]} h5 {[%clk 00:15:03]} {[%emt 00:00:33]}
30. Qxg5 {[%clk 00:00:34]} {[%emt 00:01:14]} Qxg5 {[%clk 00:15:25]} {[%emt
00:00:08]} 31. hxg5 {[%clk 00:01:00]} {[%emt 00:00:03]} Bf3 {[%clk 00:15:18]}
{[%emt 00:00:37]} 0-1

[Event "FIDE Grand Swiss 2023"]
[Site "Villa Marina, Douglas, Isle of Man, Isle Of Man"]
[Date "2023.10.26"]
[Round "2.47"]
[White "Santos Latasa, Jaime"]
[Black "Mishra, Abhimanyu"]
[Result "1/2-1/2"]
[TimeControl "40/90 + 30 + 30s/move"]
[WhiteFideId "2293307"]
[BlackFideId "30920019"]
[WhiteElo "2650"]
[BlackElo "2592"]

1. e4 {[%emt 00:00:06]} c5 {[%clk 01:40:56]} 2. Nf3 {[%clk 01:41:17]} {[%emt
00:00:10]} d6 {[%clk 01:41:18]} {[%emt 00:00:08]} 3. d4 {[%clk 01:41:42]}
{[%emt 00:00:06]} cxd4 {[%clk 01:41:39]} {[%emt 00:00:09]} 4. Nxd4 {[%clk
01:42:06]} {[%emt 00:00:06]} Nf6 {[%clk 01:41:49]} {[%emt 00:00:20]} 5. Nc3
{[%clk 01:42:30]} {[%emt 00:00:05]} a6 {[%clk 01:41:57]} {[%emt 00:00:22]} 6.
Be3 {[%clk 01:42:52]} {[%emt 00:00:08]} e5 {[%clk 01:42:00]} {[%emt 00:00:27]}
7. Nb3 {[%clk 01:43:07]} {[%emt 00:00:15]} Be7 {[%clk 01:41:48]} {[%emt
00:00:42]} 8. f3 {[%clk 01:43:30]} {[%emt 00:00:07]} Be6 {[%clk 01:41:21]}
{[%emt 00:00:56]} 9. Qd2 {[%clk 01:43:14]} {[%emt 00:00:46]} h5 {[%clk
01:41:08]} {[%emt 00:00:42]} 10. Nd5 {[%clk 01:42:37]} {[%emt 00:01:07]} Nxd5
{[%clk 01:40:30]} {[%emt 00:01:09]} 11. exd5 {[%clk 01:43:00]} {[%emt
00:00:07]} Bf5 {[%clk 01:40:56]} {[%emt 00:00:04]} 12. Be2 {[%clk 01:43:20]}
{[%emt 00:00:09]} Bh4+ {[%clk 01:38:20]} {[%emt 00:03:06]} 13. g3 {[%clk
01:43:18]} {[%emt 00:00:33]} Be7 {[%clk 01:38:47]} {[%emt 00:00:04]} 14. O-O-O
{[%clk 01:43:28]} {[%emt 00:00:20]} Nd7 {[%clk 01:37:45]} {[%emt 00:01:31]} 15.
Kb1 {[%clk 01:42:23]} {[%emt 00:01:35]} O-O {[%clk 01:36:43]} {[%emt 00:01:33]}
16. h3 {[%clk 01:40:43]} {[%emt 00:02:09]} Rc8 {[%clk 01:33:38]} {[%emt
00:03:35]} 17. Rc1 {[%clk 01:40:23]} {[%emt 00:00:49]} Bg6 {[%clk 01:31:02]}
{[%emt 00:03:07]} 18. g4 {[%clk 01:35:15]} {[%emt 00:05:38]} h4 {[%clk
01:27:04]} {[%emt 00:04:28]} 19. Rhg1 {[%clk 01:30:42]} {[%emt 00:05:02]} Qc7
{[%clk 01:03:53]} {[%emt 00:23:41]} 20. Ka1 {[%clk 01:26:41]} {[%emt 00:04:31]}
Rfe8 {[%clk 00:58:26]} {[%emt 00:05:57]} 21. g5 {[%clk 01:16:42]} {[%emt
00:10:29]} Bf5 {[%clk 00:49:17]} {[%emt 00:09:39]} 22. Bd3 {[%clk 01:14:23]}
{[%emt 00:02:47]} Bxd3 {[%clk 00:48:15]} {[%emt 00:01:34]} 23. Qxd3 {[%clk
01:14:06]} {[%emt 00:00:47]} Nf8 {[%clk 00:45:49]} {[%emt 00:02:56]} 24. Rg4
{[%clk 01:00:27]} {[%emt 00:14:08]} Ng6 {[%clk 00:45:20]} {[%emt 00:00:59]} 25.
c4 {[%clk 00:57:17]} {[%emt 00:03:41]} Qd7 {[%clk 00:39:09]} {[%emt 00:06:42]}
26. Qe4 {[%clk 00:54:16]} {[%emt 00:03:30]} Bd8 {[%clk 00:36:57]} {[%emt
00:02:43]} 27. a3 {[%clk 00:52:17]} {[%emt 00:02:29]} b5 {[%clk 00:31:32]}
{[%emt 00:05:54]} 28. c5 {[%clk 00:41:31]} {[%emt 00:11:17]} dxc5 {[%clk
00:31:20]} {[%emt 00:00:42]} 29. Nxc5 {[%clk 00:40:25]} {[%emt 00:01:36]} Qd6
{[%clk 00:27:59]} {[%emt 00:03:51]} 30. Rg2 {[%clk 00:37:57]} {[%emt 00:02:58]}
Bb6 {[%clk 00:24:35]} {[%emt 00:03:54]} 31. Rgc2 {[%clk 00:34:37]} {[%emt
00:03:50]} Bxc5 {[%clk 00:16:48]} {[%emt 00:08:17]} 32. Rxc5 {[%clk 00:32:14]}
{[%emt 00:02:53]} Rxc5 {[%clk 00:16:32]} {[%emt 00:00:46]} 33. Bxc5 {[%clk
00:32:05]} {[%emt 00:00:39]} Qd7 {[%clk 00:16:50]} {[%emt 00:00:12]} 34. d6
{[%clk 00:31:44]} {[%emt 00:00:51]} Rc8 {[%clk 00:05:59]} {[%emt 00:11:21]} 35.
Qg4 {[%clk 00:28:26]} {[%emt 00:03:47]} 1/2-1/2

[Event "FIDE Grand Swiss 2023"]
[Site "Villa Marina, Douglas, Isle of Man, Isle Of Man"]
[Date "2023.10.26"]
[Round "2.48"]
[White "Amar, Elham"]
[Black "Saric, Ivan"]
[Result "1/2-1/2"]
[TimeControl "40/90 + 30 + 30s/move"]
[WhiteFideId "1533533"]
[BlackFideId "14508150"]
[WhiteElo "2568"]
[BlackElo "2647"]

1. e4 {[%clk 01:40:57]} {[%emt 00:00:02]} c5 {[%clk 01:40:56]} {[%emt
00:00:05]} 2. Nf3 {[%clk 01:41:23]} {[%emt 00:00:04]} Nc6 {[%clk 01:41:22]}
{[%emt 00:00:04]} 3. Nc3 {[%clk 01:41:40]} {[%emt 00:00:12]} g6 {[%clk
01:35:19]} {[%emt 00:06:33]} 4. d4 {[%clk 01:42:03]} {[%emt 00:00:07]} cxd4
{[%clk 01:35:46]} {[%emt 00:00:03]} 5. Nxd4 {[%clk 01:42:28]} {[%emt 00:00:05]}
Bg7 {[%clk 01:36:14]} {[%emt 00:00:02]} 6. Be3 {[%clk 01:42:47]} {[%emt
00:00:11]} Nf6 {[%clk 01:36:40]} {[%emt 00:00:04]} 7. Bc4 {[%clk 01:43:06]}
{[%emt 00:00:11]} O-O {[%clk 01:37:05]} {[%emt 00:00:05]} 8. Bb3 {[%clk
01:43:29]} {[%emt 00:00:07]} d6 {[%clk 01:37:00]} {[%emt 00:00:34]} 9. f3
{[%clk 01:43:47]} {[%emt 00:00:11]} Qa5 {[%clk 01:35:56]} {[%emt 00:01:35]} 10.
Qd2 {[%clk 01:43:56]} {[%emt 00:00:21]} Nxd4 {[%clk 01:36:15]} {[%emt
00:00:11]} 11. Bxd4 {[%clk 01:44:18]} {[%emt 00:00:08]} Be6 {[%clk 01:36:27]}
{[%emt 00:00:18]} 12. O-O-O {[%clk 01:44:19]} {[%emt 00:00:29]} b5 {[%clk
01:36:26]} {[%emt 00:00:31]} 13. Kb1 {[%clk 01:41:26]} {[%emt 00:03:22]} b4
{[%clk 01:35:39]} {[%emt 00:01:17]} 14. Nd5 {[%clk 01:38:18]} {[%emt 00:03:38]}
Bxd5 {[%clk 01:35:58]} {[%emt 00:00:12]} 15. exd5 {[%clk 01:36:41]} {[%emt
00:02:06]} Qb5 {[%clk 01:36:07]} {[%emt 00:00:22]} 16. Qd3 {[%clk 01:32:52]}
{[%emt 00:04:18]} Qxd3 {[%clk 01:36:28]} {[%emt 00:00:10]} 17. Rxd3 {[%clk
01:31:55]} {[%emt 00:01:26]} Rfc8 {[%clk 01:30:37]} {[%emt 00:06:21]} 18. c3
{[%clk 01:13:10]} {[%emt 00:19:15]} bxc3 {[%clk 01:27:43]} {[%emt 00:03:25]} 19.
Bxc3 {[%clk 01:04:56]} {[%emt 00:08:43]} Rab8 {[%clk 01:17:59]} {[%emt
00:10:14]} 20. Re1 {[%clk 01:00:09]} {[%emt 00:05:16]} Rc7 {[%clk 01:18:06]}
{[%emt 00:00:25]} 21. Bd4 {[%clk 00:41:19]} {[%emt 00:19:20]} a5 {[%clk
01:10:47]} {[%emt 00:07:49]} 22. Rc3 {[%clk 00:38:56]} {[%emt 00:02:53]} Rcb7
{[%clk 01:08:47]} {[%emt 00:02:30]} 23. Rec1 {[%clk 00:26:47]} {[%emt
00:12:39]} Ne8 {[%clk 01:08:16]} {[%emt 00:01:01]} 24. Bxg7 {[%clk 00:26:01]}
{[%emt 00:01:15]} Kxg7 {[%clk 01:08:42]} {[%emt 00:00:05]} 25. Rc8 {[%clk
00:25:00]} {[%emt 00:01:31]} Kf6 {[%clk 00:55:51]} {[%emt 00:13:22]} 26. Rxb8
{[%clk 00:23:17]} {[%emt 00:02:13]} Rxb8 {[%clk 00:56:19]} {[%emt 00:00:02]} 27.
Ba4 {[%clk 00:22:16]} {[%emt 00:01:31]} Ke5 {[%clk 00:48:10]} {[%emt 00:08:39]}
28. Re1+ {[%clk 00:20:51]} {[%emt 00:01:55]} Kf6 {[%clk 00:48:37]} {[%emt
00:00:04]} 29. Rc1 {[%clk 00:20:08]} {[%emt 00:01:12]} Ke5 {[%clk 00:48:02]}
{[%emt 00:01:05]} 30. Rc6 {[%clk 00:18:21]} {[%emt 00:02:17]} Rb4 {[%clk
00:36:46]} {[%emt 00:11:46]} 31. b3 {[%clk 00:18:12]} {[%emt 00:00:39]} Nf6
{[%clk 00:35:28]} {[%emt 00:01:48]} 32. Ra6 {[%clk 00:18:03]} {[%emt 00:00:39]}
Rd4 {[%clk 00:31:14]} {[%emt 00:04:45]} 33. Rxa5 {[%clk 00:15:03]} {[%emt
00:03:31]} Rd2 {[%clk 00:31:17]} {[%emt 00:00:27]} 34. Bc6 {[%clk 00:14:03]}
{[%emt 00:01:30]} Rxg2 {[%clk 00:31:06]} {[%emt 00:00:41]} 35. b4 {[%clk
00:08:19]} {[%emt 00:06:14]} Kd4 {[%clk 00:26:03]} {[%emt 00:05:34]} 36. b5
{[%clk 00:07:52]} {[%emt 00:00:58]} Nxd5 {[%clk 00:22:04]} {[%emt 00:04:29]} 37.
Bxd5 {[%clk 00:07:17]} {[%emt 00:01:04]} Kxd5 {[%clk 00:22:31]} {[%emt
00:00:03]} 38. Ra7 {[%clk 00:06:44]} {[%emt 00:01:03]} Kc5 {[%clk 00:19:28]}
{[%emt 00:03:33]} 39. a4 {[%clk 00:07:09]} {[%emt 00:00:05]} Rxh2 {[%clk
00:16:48]} {[%emt 00:03:10]} 40. Rc7+ {[%clk 00:06:06]} {[%emt 00:01:33]} Kb6
{[%clk 00:16:16]} {[%emt 00:01:02]} 41. Rc6+ {[%clk 00:03:26]} {[%emt
00:03:10]} Ka5 {[%clk 00:13:10]} {[%emt 00:03:37]} 42. Ra6+ {[%clk 00:03:01]}
{[%emt 00:00:55]} Kb4 {[%clk 00:13:36]} {[%emt 00:00:04]} 43. b6 {[%clk
00:46:19]} {[%emt 00:07:11]} Kb3 {[%clk 01:03:35]} {[%emt 00:00:31]} 44. Kc1
{[%clk 00:46:43]} {[%emt 00:00:06]} Kc3 {[%clk 01:03:40]} {[%emt 00:00:24]} 45.
Kd1 {[%clk 00:46:58]} {[%emt 00:00:15]} Kd3 {[%clk 00:43:59]} {[%emt 00:20:12]}
46. Kc1 {[%clk 00:47:10]} {[%emt 00:00:17]} Kc3 {[%clk 00:38:53]} {[%emt
00:05:37]} 47. Kd1 {[%clk 00:47:34]} {[%emt 00:00:05]} Kd3 {[%clk 00:35:05]}
{[%emt 00:04:18]} 48. Kc1 {[%clk 00:47:41]} {[%emt 00:00:22]} Kc3 {[%clk
00:35:32]} {[%emt 00:00:03]} 1/2-1/2